[Event "Early-Titled-Tuesday-Blitz-September-05-2023"]
[Site "Chess.com"]
[Date "2023.09.05"]
[Round "4"]
[White "Apocalyps999"]
[Black "knightinshiningarmour16"]
[Result "1-0"]
[WhiteElo "2307"]
[BlackElo "2106"]
[TimeControl "180+1"]
[EndTime "8:40:14 PDT"]
[Termination "Apocalyps999 won by checkmate"]

1. e4 {[%clk 0:03:00.9]} 1... c6 {[%clk 0:02:57.6]} 2. c4 {[%clk 0:03:00.3]}
2... d5 {[%clk 0:02:55.4]} 3. exd5 {[%clk 0:03:01.2]} 3... cxd5 {[%clk
0:02:56.3]} 4. cxd5 {[%clk 0:03:02.1]} 4... Qxd5 {[%clk 0:02:56.6]} 5. Nc3
{[%clk 0:03:02.2]} 5... Qd8 {[%clk 0:02:56.7]} 6. d4 {[%clk 0:03:03.1]} 6... Nf6
{[%clk 0:02:42.6]} 7. Nf3 {[%clk 0:03:02.7]} 7... g6 {[%clk 0:02:35.4]} 8. Bc4
{[%clk 0:02:55.7]} 8... Bg7 {[%clk 0:02:30.3]} 9. O-O {[%clk 0:02:55.3]} 9...
O-O {[%clk 0:02:29.6]} 10. Qb3 {[%clk 0:02:49.5]} 10... e6 {[%clk 0:02:16.8]}
11. a3 {[%clk 0:02:38]} 11... Nc6 {[%clk 0:02:02.9]} 12. Rd1 {[%clk 0:02:22]}
12... a6 {[%clk 0:01:52.8]} 13. Qa2 {[%clk 0:02:21.6]} 13... b5 {[%clk
0:01:35.4]} 14. Bb3 {[%clk 0:02:14.9]} 14... Na5 {[%clk 0:01:32.7]} 15. Bc2
{[%clk 0:02:14.8]} 15... Bb7 {[%clk 0:01:31.5]} 16. Ne5 {[%clk 0:02:12.6]} 16...
Nd5 {[%clk 0:01:28.9]} 17. Bd2 {[%clk 0:01:52.5]} 17... Rc8 {[%clk 0:01:13.2]}
18. Nxd5 {[%clk 0:01:27.1]} 18... Bxd5 {[%clk 0:01:11.9]} 19. b3 {[%clk
0:01:27.2]} 19... Rxc2 {[%clk 0:00:28.7]} 20. Qxc2 {[%clk 0:00:54.8]} 20... Nxb3
{[%clk 0:00:20.2]} 21. Bb4 {[%clk 0:00:23.4]} 21... Nxa1 {[%clk 0:00:17.3]} 22.
Rxa1 {[%clk 0:00:24.3]} 22... Re8 {[%clk 0:00:17]} 23. Rc1 {[%clk 0:00:21.2]}
23... Bxe5 {[%clk 0:00:15.5]} 24. dxe5 {[%clk 0:00:22.1]} 24... Bc4 {[%clk
0:00:16.4]} 25. Bd6 {[%clk 0:00:20.1]} 25... Qd7 {[%clk 0:00:16.2]} 26. Qe4
{[%clk 0:00:18.6]} 26... f6 {[%clk 0:00:15.9]} 27. Qf4 {[%clk 0:00:16.9]} 27...
fxe5 {[%clk 0:00:15.4]} 28. Bxe5 {[%clk 0:00:17.8]} 28... Rf8 {[%clk 0:00:15.2]}
29. Qh6 {[%clk 0:00:17.2]} 29... Qf7 {[%clk 0:00:14.5]} 30. f4 {[%clk
0:00:16.2]} 30... Rd8 {[%clk 0:00:14.1]} 31. Qh4 {[%clk 0:00:14.5]} 31... Qa7+
{[%clk 0:00:13.4]} 32. Kh1 {[%clk 0:00:13.6]} 32... Rf8 {[%clk 0:00:13.7]} 33.
h3 {[%clk 0:00:13.8]} 33... Qe3 {[%clk 0:00:11.7]} 34. Ra1 {[%clk 0:00:13.7]}
34... Bd5 {[%clk 0:00:09.9]} 35. Qg4 {[%clk 0:00:12.8]} 35... Qf2 {[%clk
0:00:08.6]} 36. Kh2 {[%clk 0:00:12.6]} 36... Rc8 {[%clk 0:00:08.8]} 37. Qg3
{[%clk 0:00:09.3]} 37... Qxg3+ {[%clk 0:00:08.4]} 38. Kxg3 {[%clk 0:00:10.2]}
38... Rc2 {[%clk 0:00:08.9]} 39. Rg1 {[%clk 0:00:10]} 39... Kf7 {[%clk
0:00:09.1]} 40. Bd6 {[%clk 0:00:09.6]} 40... h5 {[%clk 0:00:09.5]} 41. Kh4
{[%clk 0:00:09.7]} 41... Rc4 {[%clk 0:00:09.4]} 42. Kg5 {[%clk 0:00:08.4]} 42...
Rc2 {[%clk 0:00:09.4]} 43. g3 {[%clk 0:00:08.1]} 43... Rh2 {[%clk 0:00:08.6]}
44. h4 {[%clk 0:00:07.9]} 44... Rc2 {[%clk 0:00:08.1]} 45. Be5 {[%clk
0:00:08.8]} 45... Rc4 {[%clk 0:00:07.4]} 46. Kh6 {[%clk 0:00:08]} 46... Rc2
{[%clk 0:00:07.2]} 47. Kg5 {[%clk 0:00:06.8]} 47... Rc4 {[%clk 0:00:07.3]} 48.
Kh6 {[%clk 0:00:06.3]} 48... Rc6 {[%clk 0:00:06.8]} 49. g4 {[%clk 0:00:06.3]}
49... hxg4 {[%clk 0:00:06.3]} 50. Rxg4 {[%clk 0:00:07.2]} 50... Rc2 {[%clk
0:00:05.2]} 51. Rxg6 {[%clk 0:00:06.6]} 51... Rh2 {[%clk 0:00:05.4]} 52. Rg7+
{[%clk 0:00:07.1]} 52... Kf8 {[%clk 0:00:05.2]} 53. h5 {[%clk 0:00:07.2]} 53...
Rh3 {[%clk 0:00:04.9]} 54. Rg5 {[%clk 0:00:08.1]} 54... Rxa3 {[%clk 0:00:04.6]}
55. Bd6+ {[%clk 0:00:07.8]} 55... Kf7 {[%clk 0:00:03.9]} 56. Bxa3 {[%clk
0:00:08.7]} 56... a5 {[%clk 0:00:03.1]} 57. f5 {[%clk 0:00:09.6]} 57... b4
{[%clk 0:00:02.1]} 58. fxe6+ {[%clk 0:00:09.9]} 58... Kxe6 {[%clk 0:00:01.4]}
59. Bb2 {[%clk 0:00:06.3]} 59... a4 {[%clk 0:00:01.5]} 60. Re5+ {[%clk
0:00:06.6]} 60... Kd6 {[%clk 0:00:01.7]} 61. Re3 {[%clk 0:00:07.2]} 61... a3
{[%clk 0:00:02]} 62. Bxa3 {[%clk 0:00:07.6]} 62... bxa3 {[%clk 0:00:02.9]} 63.
Rxa3 {[%clk 0:00:08.5]} 63... Ke5 {[%clk 0:00:03.4]} 64. Rg3 {[%clk 0:00:09.1]}
64... Kf6 {[%clk 0:00:03.7]} 65. Kh7 {[%clk 0:00:08.3]} 65... Kf7 {[%clk
0:00:04]} 66. h6 {[%clk 0:00:09.2]} 66... Be4+ {[%clk 0:00:04.1]} 67. Kh8 {[%clk
0:00:09.3]} 67... Kf8 {[%clk 0:00:04.5]} 68. Rg8+ {[%clk 0:00:09.3]} 68... Kf7
{[%clk 0:00:04.6]} 69. h7 {[%clk 0:00:09.9]} 69... Bd5 {[%clk 0:00:04.1]} 70.
Rd8 {[%clk 0:00:09.9]} 70... Be6 {[%clk 0:00:04.1]} 71. Rb8 {[%clk 0:00:10.1]}
71... Bd5 {[%clk 0:00:04]} 72. Rc8 {[%clk 0:00:07.6]} 72... Be6 {[%clk
0:00:03.9]} 73. Rc7+ {[%clk 0:00:07.2]} 73... Kg6 {[%clk 0:00:03.7]} 74. Rc6
{[%clk 0:00:05.9]} 74... Kf7 {[%clk 0:00:03.9]} 75. Rxe6 {[%clk 0:00:05.5]}
75... Kxe6 {[%clk 0:00:03.9]} 76. Kg8 {[%clk 0:00:06.4]} 76... Ke7 {[%clk
0:00:03.9]} 77. h8=Q {[%clk 0:00:05.8]} 77... Ke6 {[%clk 0:00:03.7]} 78. Qg7
{[%clk 0:00:05.9]} 78... Kd5 {[%clk 0:00:04.6]} 79. Qf6 {[%clk 0:00:05.1]} 79...
Kc4 {[%clk 0:00:05.5]} 80. Kf7 {[%clk 0:00:06]} 80... Kb3 {[%clk 0:00:06.4]} 81.
Ke6 {[%clk 0:00:06.9]} 81... Ka2 {[%clk 0:00:07.1]} 82. Kd5 {[%clk 0:00:07.8]}
82... Kb1 {[%clk 0:00:07.4]} 83. Kc4 {[%clk 0:00:08.7]} 83... Ka2 {[%clk
0:00:08.2]} 84. Qf2+ {[%clk 0:00:09]} 84... Kb1 {[%clk 0:00:09]} 85. Kb3 {[%clk
0:00:08.9]} 85... Kc1 {[%clk 0:00:09.9]} 86. Qc2# {[%clk 0:00:09.5]} 1-0

[Event "Early-Titled-Tuesday-Blitz-September-05-2023"]
[Site "Chess.com"]
[Date "2023.09.05"]
[Round "5"]
[White "nrvignesh"]
[Black "DrDreBeats"]
[Result "1-0"]
[WhiteElo "2833"]
[BlackElo "2548"]
[TimeControl "180+1"]
[EndTime "8:49:44 PDT"]
[Termination "nrvignesh won by resignation"]

1. d4 {[%clk 0:02:56]} 1... Nf6 {[%clk 0:02:59.7]} 2. c4 {[%clk 0:02:55.9]} 2...
g6 {[%clk 0:02:59.8]} 3. g3 {[%clk 0:02:55.4]} 3... Bg7 {[%clk 0:02:59.8]} 4.
Bg2 {[%clk 0:02:56]} 4... O-O {[%clk 0:03:00.3]} 5. Nc3 {[%clk 0:02:56.7]} 5...
d6 {[%clk 0:03:00.7]} 6. Nf3 {[%clk 0:02:57.3]} 6... c6 {[%clk 0:03:01.1]} 7. e4
{[%clk 0:02:56.6]} 7... Bg4 {[%clk 0:02:57.8]} 8. h3 {[%clk 0:02:53.6]} 8...
Bxf3 {[%clk 0:02:57.9]} 9. Bxf3 {[%clk 0:02:54.5]} 9... Nfd7 {[%clk 0:02:58.5]}
10. Be3 {[%clk 0:02:53.9]} 10... c5 {[%clk 0:02:58.6]} 11. d5 {[%clk 0:02:52.4]}
11... a6 {[%clk 0:02:47.4]} 12. O-O {[%clk 0:02:50.6]} 12... b5 {[%clk
0:02:47.2]} 13. cxb5 {[%clk 0:02:50]} 13... axb5 {[%clk 0:02:47.2]} 14. Nxb5
{[%clk 0:02:50.4]} 14... Bxb2 {[%clk 0:02:45.5]} 15. Rb1 {[%clk 0:02:50.4]}
15... Bg7 {[%clk 0:02:43.7]} 16. a3 {[%clk 0:02:43.3]} 16... Na6 {[%clk
0:02:36.3]} 17. Qc1 {[%clk 0:02:40.2]} 17... Qa5 {[%clk 0:02:28.7]} 18. Bd2
{[%clk 0:02:25.8]} 18... Qa4 {[%clk 0:02:23.4]} 19. Re1 {[%clk 0:02:24.2]} 19...
Rfb8 {[%clk 0:02:13.8]} 20. Bd1 {[%clk 0:02:22.9]} 20... Qa5 {[%clk 0:02:13.9]}
21. Bxa5 {[%clk 0:02:22.2]} 1-0

[Event "Early-Titled-Tuesday-Blitz-September-05-2023"]
[Site "Chess.com"]
[Date "2023.09.05"]
[Round "5"]
[White "chito89"]
[Black "AleksanderHnydiuk"]
[Result "1-0"]
[WhiteElo "2808"]
[BlackElo "2534"]
[TimeControl "180+1"]
[EndTime "8:50:05 PDT"]
[Termination "chito89 won by resignation"]

1. d4 {[%clk 0:03:00.9]} 1... Nf6 {[%clk 0:02:59.6]} 2. c4 {[%clk 0:02:59.5]}
2... e6 {[%clk 0:02:59.8]} 3. Nf3 {[%clk 0:02:58.5]} 3... d5 {[%clk 0:02:55.8]}
4. g3 {[%clk 0:02:58.1]} 4... Bd6 {[%clk 0:02:53.5]} 5. Nbd2 {[%clk 0:02:55.5]}
5... O-O {[%clk 0:02:50.3]} 6. Bg2 {[%clk 0:02:55.8]} 6... b6 {[%clk 0:02:48.9]}
7. cxd5 {[%clk 0:02:49.4]} 7... exd5 {[%clk 0:02:48.4]} 8. O-O {[%clk
0:02:49.9]} 8... Bb7 {[%clk 0:02:48.4]} 9. b3 {[%clk 0:02:48.7]} 9... Nbd7
{[%clk 0:02:47.4]} 10. Bb2 {[%clk 0:02:49.1]} 10... Re8 {[%clk 0:02:47.6]} 11.
Rc1 {[%clk 0:02:47]} 11... c5 {[%clk 0:02:44.5]} 12. e3 {[%clk 0:02:38.2]} 12...
a5 {[%clk 0:02:40.9]} 13. Re1 {[%clk 0:02:25.4]} 13... a4 {[%clk 0:02:40]} 14.
dxc5 {[%clk 0:02:23.8]} 14... bxc5 {[%clk 0:02:38.1]} 15. Nh4 {[%clk 0:02:17.4]}
15... axb3 {[%clk 0:02:27.5]} 16. axb3 {[%clk 0:02:10.4]} 16... Ra2 {[%clk
0:02:27.1]} 17. Rc2 {[%clk 0:02:06.1]} 17... Bf8 {[%clk 0:02:01.2]} 18. Bxf6
{[%clk 0:02:03.5]} 1-0

[Event "Early-Titled-Tuesday-Blitz-September-05-2023"]
[Site "Chess.com"]
[Date "2023.09.05"]
[Round "5"]
[White "TrenerChos"]
[Black "XDPS"]
[Result "0-1"]
[WhiteElo "2619"]
[BlackElo "2865"]
[TimeControl "180+1"]
[EndTime "8:50:23 PDT"]
[Termination "XDPS won by resignation"]

1. d4 {[%clk 0:03:00.2]} 1... d5 {[%clk 0:03:00.1]} 2. Nf3 {[%clk 0:03:00.2]}
2... c6 {[%clk 0:03:00.7]} 3. b3 {[%clk 0:03:00.3]} 3... Nf6 {[%clk 0:03:01.2]}
4. Bb2 {[%clk 0:03:00.2]} 4... Bf5 {[%clk 0:03:01.9]} 5. e3 {[%clk 0:03:00.4]}
5... Nbd7 {[%clk 0:03:01.3]} 6. Bd3 {[%clk 0:03:00.3]} 6... Bxd3 {[%clk
0:03:01.2]} 7. Qxd3 {[%clk 0:03:00.2]} 7... e6 {[%clk 0:03:01.7]} 8. O-O {[%clk
0:03:00.2]} 8... Be7 {[%clk 0:03:02.4]} 9. c4 {[%clk 0:02:59.7]} 9... O-O {[%clk
0:03:02.8]} 10. Nbd2 {[%clk 0:02:57.5]} 10... a5 {[%clk 0:03:02.7]} 11. a3
{[%clk 0:02:55.7]} 11... Qb6 {[%clk 0:03:02.4]} 12. Rab1 {[%clk 0:02:54.9]}
12... Qa6 {[%clk 0:03:02.1]} 13. Rfc1 {[%clk 0:02:46.9]} 13... Rfd8 {[%clk
0:03:02.2]} 14. e4 {[%clk 0:02:46.7]} 14... dxe4 {[%clk 0:02:58.7]} 15. Nxe4
{[%clk 0:02:46.9]} 15... Nxe4 {[%clk 0:02:57.8]} 16. Qxe4 {[%clk 0:02:47.8]}
16... Bf6 {[%clk 0:02:58.3]} 17. a4 {[%clk 0:02:44.7]} 17... Qb6 {[%clk
0:02:56.9]} 18. Ba3 {[%clk 0:02:44.5]} 18... Nf8 {[%clk 0:02:54.2]} 19. Rd1
{[%clk 0:02:44.1]} 19... Ng6 {[%clk 0:02:54.8]} 20. h4 {[%clk 0:02:43.7]} 20...
h6 {[%clk 0:02:53.8]} 21. g4 {[%clk 0:02:42.8]} 21... Nxh4 {[%clk 0:02:50.3]}
22. Nxh4 {[%clk 0:02:41.4]} 22... Bxh4 {[%clk 0:02:50.9]} 23. Kg2 {[%clk
0:02:39.7]} 23... Bf6 {[%clk 0:02:50.2]} 24. Bc5 {[%clk 0:02:39.4]} 24... Qc7
{[%clk 0:02:49.9]} 25. f4 {[%clk 0:02:38.4]} 25... Rd7 {[%clk 0:02:46.9]} 26.
Rh1 {[%clk 0:02:33.9]} 26... b6 {[%clk 0:02:41.7]} 27. g5 {[%clk 0:02:33.9]}
27... bxc5 {[%clk 0:02:39]} 28. gxf6 {[%clk 0:02:31.2]} 28... Rxd4 {[%clk
0:02:39.6]} 29. Qe5 {[%clk 0:02:22.9]} 29... Qxe5 {[%clk 0:02:35.1]} 30. fxe5
{[%clk 0:02:23.8]} 30... Rb8 {[%clk 0:02:35.4]} 31. Rh3 {[%clk 0:02:20]} 31...
Rxc4 {[%clk 0:02:30.5]} 32. Rg3 {[%clk 0:02:19.1]} 32... g5 {[%clk 0:02:19]} 33.
Rh1 {[%clk 0:02:12.5]} 33... Rc2+ {[%clk 0:02:18.1]} 34. Kh3 {[%clk 0:02:11.9]}
34... Rb4 {[%clk 0:02:14.3]} 0-1

[Event "Early-Titled-Tuesday-Blitz-September-05-2023"]
[Site "Chess.com"]
[Date "2023.09.05"]
[Round "5"]
[White "nihalsarin"]
[Black "Dave_ChessMate"]
[Result "1-0"]
[WhiteElo "3127"]
[BlackElo "2734"]
[TimeControl "180+1"]
[EndTime "8:50:40 PDT"]
[Termination "nihalsarin won by resignation"]

1. Nf3 {[%clk 0:03:00.4]} 1... Nf6 {[%clk 0:02:59.3]} 2. b3 {[%clk 0:03:01.3]}
2... g6 {[%clk 0:02:59.3]} 3. Bb2 {[%clk 0:03:02.2]} 3... Bg7 {[%clk 0:03:00]}
4. e3 {[%clk 0:03:03.1]} 4... O-O {[%clk 0:03:00.4]} 5. d4 {[%clk 0:03:04]} 5...
d5 {[%clk 0:03:00.1]} 6. Be2 {[%clk 0:03:04.2]} 6... c5 {[%clk 0:02:59.9]} 7.
dxc5 {[%clk 0:03:04.6]} 7... Qa5+ {[%clk 0:02:58.8]} 8. Nbd2 {[%clk 0:03:05.3]}
8... Qxc5 {[%clk 0:02:59.3]} 9. O-O {[%clk 0:03:06.1]} 9... Nc6 {[%clk
0:02:58.3]} 10. c4 {[%clk 0:03:06.9]} 10... Rd8 {[%clk 0:02:55.5]} 11. Rc1
{[%clk 0:03:07.4]} 11... Bf5 {[%clk 0:02:40.2]} 12. a3 {[%clk 0:03:06.7]} 12...
a5 {[%clk 0:02:39.5]} 13. Nd4 {[%clk 0:03:06.2]} 13... Nxd4 {[%clk 0:02:38.7]}
14. exd4 {[%clk 0:03:07.1]} 14... Qc7 {[%clk 0:02:38.2]} 15. c5 {[%clk
0:03:07.8]} 15... h5 {[%clk 0:02:16.7]} 16. h3 {[%clk 0:03:08.1]} 16... Ne4
{[%clk 0:02:15]} 17. Nf3 {[%clk 0:03:07.7]} 17... Bh6 {[%clk 0:02:12.1]} 18. Rc2
{[%clk 0:03:08]} 18... Bf4 {[%clk 0:02:12.1]} 19. Bd3 {[%clk 0:03:08.3]} 19...
g5 {[%clk 0:02:11.3]} 20. Bc1 {[%clk 0:03:08]} 20... Bxc1 {[%clk 0:02:03.6]} 21.
Qxc1 {[%clk 0:03:08.9]} 21... Qf4 {[%clk 0:02:04.2]} 22. Nxg5 {[%clk 0:03:07]}
22... Qxg5 {[%clk 0:02:02.5]} 23. Qxg5+ {[%clk 0:03:06.7]} 23... Nxg5 {[%clk
0:02:02.8]} 24. Bxf5 {[%clk 0:03:07.6]} 24... e6 {[%clk 0:02:03]} 25. Bd3 {[%clk
0:03:06.9]} 25... Ne4 {[%clk 0:02:00.9]} 26. Re1 {[%clk 0:03:07.3]} 26... Nf6
{[%clk 0:02:00.5]} 27. Re5 {[%clk 0:03:08.1]} 27... Kf8 {[%clk 0:01:59]} 28.
Rce2 {[%clk 0:03:08.8]} 28... Ke7 {[%clk 0:01:59]} 29. R2e3 {[%clk 0:03:09.4]}
29... b6 {[%clk 0:01:51.3]} 30. b4 {[%clk 0:03:08]} 30... axb4 {[%clk
0:01:51.3]} 31. axb4 {[%clk 0:03:08.9]} 31... bxc5 {[%clk 0:01:51.9]} 32. dxc5
{[%clk 0:03:08.1]} 32... Ra1+ {[%clk 0:01:51.5]} 33. Re1 {[%clk 0:03:08.1]}
33... Ra3 {[%clk 0:01:51.1]} 34. Bf1 {[%clk 0:03:08.2]} 34... d4 {[%clk
0:01:50.4]} 35. Rd1 {[%clk 0:03:08.1]} 35... d3 {[%clk 0:01:50.4]} 36. Re3
{[%clk 0:03:08.1]} 36... Rb8 {[%clk 0:01:49.3]} 37. Rexd3 {[%clk 0:03:07.2]}
37... Rxd3 {[%clk 0:01:49.3]} 38. Bxd3 {[%clk 0:03:06.8]} 38... Rxb4 {[%clk
0:01:49.7]} 39. Rc1 {[%clk 0:03:07.5]} 39... Nd5 {[%clk 0:01:44.9]} 40. Be2
{[%clk 0:03:07.6]} 40... h4 {[%clk 0:01:44.7]} 41. Bf3 {[%clk 0:03:08.3]} 41...
Nc7 {[%clk 0:01:44.9]} 42. c6 {[%clk 0:03:08.5]} 42... Kd6 {[%clk 0:01:45]} 43.
Rd1+ {[%clk 0:03:08.6]} 43... Nd5 {[%clk 0:01:45.2]} 44. c7 {[%clk 0:03:04.2]}
44... Rc4 {[%clk 0:01:45.1]} 45. Rd4 {[%clk 0:03:03.7]} 45... Rxc7 {[%clk
0:01:45.1]} 46. Rxh4 {[%clk 0:03:03.2]} 46... Rc1+ {[%clk 0:01:45.5]} 47. Kh2
{[%clk 0:03:03.5]} 47... Ke7 {[%clk 0:01:46.2]} 48. Rd4 {[%clk 0:03:02.9]} 48...
Nf6 {[%clk 0:01:46.2]} 49. g3 {[%clk 0:03:03.1]} 49... Rc8 {[%clk 0:01:45.8]}
50. Kg2 {[%clk 0:03:03.7]} 50... Nd7 {[%clk 0:01:45.8]} 51. Ra4 {[%clk
0:03:04.3]} 51... e5 {[%clk 0:01:46]} 52. Ra7 {[%clk 0:03:04.8]} 52... Rd8
{[%clk 0:01:45.1]} 53. Bg4 {[%clk 0:03:05.3]} 1-0

[Event "Early-Titled-Tuesday-Blitz-September-05-2023"]
[Site "Chess.com"]
[Date "2023.09.05"]
[Round "5"]
[White "IPAchess"]
[Black "NovoselovRoman"]
[Result "0-1"]
[WhiteElo "2409"]
[BlackElo "2579"]
[TimeControl "180+1"]
[EndTime "8:51:10 PDT"]
[Termination "NovoselovRoman won by resignation"]

1. d4 {[%clk 0:02:59.6]} 1... d5 {[%clk 0:02:59]} 2. c4 {[%clk 0:02:59.3]} 2...
e6 {[%clk 0:02:57.4]} 3. Nf3 {[%clk 0:02:56.2]} 3... Nf6 {[%clk 0:02:58]} 4. Nc3
{[%clk 0:02:56.5]} 4... Be7 {[%clk 0:02:57.7]} 5. Bf4 {[%clk 0:02:55.1]} 5... a6
{[%clk 0:02:57.3]} 6. c5 {[%clk 0:02:51.9]} 6... Nc6 {[%clk 0:02:55.2]} 7. e3
{[%clk 0:02:50.5]} 7... Ne4 {[%clk 0:02:52.3]} 8. Bd3 {[%clk 0:02:50.1]} 8... f5
{[%clk 0:02:52.4]} 9. O-O {[%clk 0:02:49.8]} 9... O-O {[%clk 0:02:51.9]} 10. Ne5
{[%clk 0:02:49.9]} 10... Nxe5 {[%clk 0:02:51.7]} 11. Bxe5 {[%clk 0:02:49]} 11...
Bf6 {[%clk 0:02:43.2]} 12. Bxf6 {[%clk 0:02:29.2]} 12... Qxf6 {[%clk 0:02:22.6]}
13. f4 {[%clk 0:02:12.6]} 13... b6 {[%clk 0:02:07]} 14. Bxe4 {[%clk 0:02:09.5]}
14... fxe4 {[%clk 0:02:04.4]} 15. cxb6 {[%clk 0:02:03]} 15... cxb6 {[%clk
0:02:04.5]} 16. Na4 {[%clk 0:02:02.6]} 16... Rb8 {[%clk 0:02:05]} 17. Rc1 {[%clk
0:02:01.3]} 17... Bd7 {[%clk 0:02:05.5]} 18. Rc7 {[%clk 0:01:58.4]} 18... Qd8
{[%clk 0:01:58.7]} 19. Ra7 {[%clk 0:01:49.8]} 19... Rf7 {[%clk 0:01:45.4]} 20.
Rxa6 {[%clk 0:01:25.8]} 20... Bb5 {[%clk 0:01:45]} 0-1

[Event "Early-Titled-Tuesday-Blitz-September-05-2023"]
[Site "Chess.com"]
[Date "2023.09.05"]
[Round "5"]
[White "AlexanderL"]
[Black "FairChess_on_YouTube"]
[Result "0-1"]
[WhiteElo "2852"]
[BlackElo "3059"]
[TimeControl "180+1"]
[EndTime "8:51:42 PDT"]
[Termination "FairChess_on_YouTube won by resignation"]

1. Nf3 {[%clk 0:03:00.9]} 1... b5 {[%clk 0:02:59.1]} 2. e4 {[%clk 0:03:00.4]}
2... Bb7 {[%clk 0:02:58.7]} 3. Bxb5 {[%clk 0:02:59.5]} 3... Bxe4 {[%clk
0:02:58.7]} 4. O-O {[%clk 0:02:59.8]} 4... c6 {[%clk 0:02:59.1]} 5. Ba4 {[%clk
0:02:59.7]} 5... Qa5 {[%clk 0:02:59]} 6. Bb3 {[%clk 0:02:57.6]} 6... Qh5 {[%clk
0:02:58.6]} 7. Nd4 {[%clk 0:02:44.4]} 7... Qxd1 {[%clk 0:02:54.4]} 8. Rxd1
{[%clk 0:02:45.3]} 8... Nf6 {[%clk 0:02:53.8]} 9. Nc3 {[%clk 0:02:42.1]} 9...
Bg6 {[%clk 0:02:47.2]} 10. Nde2 {[%clk 0:02:41.9]} 10... e6 {[%clk 0:02:45.6]}
11. Nf4 {[%clk 0:02:42]} 11... d5 {[%clk 0:02:36.4]} 12. d4 {[%clk 0:02:41]}
12... Bd6 {[%clk 0:02:35.8]} 13. Nxg6 {[%clk 0:02:40.8]} 13... hxg6 {[%clk
0:02:35.7]} 14. h3 {[%clk 0:02:41.2]} 14... Nbd7 {[%clk 0:02:33]} 15. Ne2 {[%clk
0:02:41.5]} 15... a5 {[%clk 0:02:31.2]} 16. c3 {[%clk 0:02:39.6]} 16... a4
{[%clk 0:02:31.5]} 17. Bc2 {[%clk 0:02:39.8]} 17... Ke7 {[%clk 0:02:28.9]} 18.
a3 {[%clk 0:02:40]} 18... Rhb8 {[%clk 0:02:27.8]} 19. Nf4 {[%clk 0:02:39.9]}
19... Bxf4 {[%clk 0:02:21.9]} 20. Bxf4 {[%clk 0:02:40.8]} 20... Rxb2 {[%clk
0:02:22.2]} 21. Rdc1 {[%clk 0:02:41.5]} 21... Ne4 {[%clk 0:02:07.8]} 22. Rab1
{[%clk 0:02:38.5]} 22... Rxb1 {[%clk 0:02:00]} 23. Bxb1 {[%clk 0:02:39.4]} 23...
Nd6 {[%clk 0:01:52.8]} 24. Bxd6+ {[%clk 0:02:20.3]} 24... Kxd6 {[%clk
0:01:52.8]} 25. c4 {[%clk 0:02:20.8]} 25... Rb8 {[%clk 0:01:22.5]} 26. c5+
{[%clk 0:02:19.6]} 26... Kc7 {[%clk 0:01:19.8]} 27. Bc2 {[%clk 0:02:13.9]} 27...
Rb2 {[%clk 0:01:05.7]} 28. Bxa4 {[%clk 0:02:12.3]} 28... Ra2 {[%clk 0:01:05.5]}
29. Rc3 {[%clk 0:02:07.7]} 29... Rd2 {[%clk 0:01:05]} 0-1

[Event "Early-Titled-Tuesday-Blitz-September-05-2023"]
[Site "Chess.com"]
[Date "2023.09.05"]
[Round "5"]
[White "petearrpan"]
[Black "MikeSailer"]
[Result "0-1"]
[WhiteElo "2416"]
[BlackElo "2177"]
[TimeControl "180+1"]
[EndTime "8:51:44 PDT"]
[Termination "MikeSailer won on time"]

1. e4 {[%clk 0:01:12.5]} 1... d5 {[%clk 0:02:41.8]} 2. exd5 {[%clk 0:01:13.4]}
2... Qxd5 {[%clk 0:02:39.3]} 3. Nf3 {[%clk 0:01:12.5]} 3... Bg4 {[%clk
0:02:35.5]} 4. Be2 {[%clk 0:01:12.5]} 4... Nc6 {[%clk 0:02:27.9]} 5. Nc3 {[%clk
0:01:10.5]} 5... Qd7 {[%clk 0:02:20.2]} 6. h3 {[%clk 0:01:09.3]} 6... Bh5 {[%clk
0:02:16.5]} 7. O-O {[%clk 0:00:57.5]} 7... O-O-O {[%clk 0:02:16.1]} 8. a3 {[%clk
0:00:50]} 8... Nf6 {[%clk 0:02:07.4]} 9. b4 {[%clk 0:00:50]} 9... e5 {[%clk
0:02:02.3]} 10. b5 {[%clk 0:00:48.3]} 10... Bxf3 {[%clk 0:02:02.1]} 11. Bxf3
{[%clk 0:00:34.3]} 11... Nd4 {[%clk 0:02:00.2]} 0-1

[Event "Early-Titled-Tuesday-Blitz-September-05-2023"]
[Site "Chess.com"]
[Date "2023.09.05"]
[Round "5"]
[White "gau248"]
[Black "Gareth-Bale11"]
[Result "1/2-1/2"]
[WhiteElo "2570"]
[BlackElo "2783"]
[TimeControl "180+1"]
[EndTime "8:51:45 PDT"]
[Termination "Game drawn by repetition"]

1. d4 {[%clk 0:03:00.9]} 1... d5 {[%clk 0:02:55.7]} 2. Nf3 {[%clk 0:02:58.9]}
2... Nf6 {[%clk 0:02:54.7]} 3. c4 {[%clk 0:02:58.9]} 3... e6 {[%clk 0:02:55]} 4.
g3 {[%clk 0:02:59.1]} 4... Bb4+ {[%clk 0:02:54.6]} 5. Bd2 {[%clk 0:02:59.1]}
5... Be7 {[%clk 0:02:55]} 6. Bg2 {[%clk 0:02:59.7]} 6... O-O {[%clk 0:02:55.6]}
7. O-O {[%clk 0:02:59.9]} 7... Nbd7 {[%clk 0:02:56.2]} 8. Qc2 {[%clk 0:02:58.6]}
8... c6 {[%clk 0:02:55.3]} 9. Rd1 {[%clk 0:02:55.4]} 9... b6 {[%clk 0:02:55.2]}
10. Bf4 {[%clk 0:02:52.1]} 10... Nh5 {[%clk 0:02:54.7]} 11. Bc1 {[%clk
0:02:42.7]} 11... Nhf6 {[%clk 0:02:41.6]} 12. Bf4 {[%clk 0:02:41.4]} 12... a5
{[%clk 0:02:36.1]} 13. Nbd2 {[%clk 0:02:39.8]} 13... Nh5 {[%clk 0:02:29.5]} 14.
Be3 {[%clk 0:02:37.1]} 14... Ba6 {[%clk 0:02:28.9]} 15. Rac1 {[%clk 0:02:34.6]}
15... Rc8 {[%clk 0:02:28.5]} 16. b3 {[%clk 0:02:24.5]} 16... Ba3 {[%clk
0:02:25.8]} 17. Rb1 {[%clk 0:02:20.8]} 17... c5 {[%clk 0:02:25.1]} 18. dxc5
{[%clk 0:02:08.5]} 18... bxc5 {[%clk 0:02:20]} 19. cxd5 {[%clk 0:02:03.4]} 19...
exd5 {[%clk 0:02:18.2]} 20. Ng5 {[%clk 0:02:02.7]} 20... Nhf6 {[%clk 0:02:12.9]}
21. Bxd5 {[%clk 0:01:59]} 21... h6 {[%clk 0:02:06]} 22. Nxf7 {[%clk 0:01:57.8]}
22... Rxf7 {[%clk 0:02:03.8]} 23. Bxf7+ {[%clk 0:01:58]} 23... Kxf7 {[%clk
0:02:02.8]} 24. Nc4 {[%clk 0:01:57.3]} 24... Bxc4 {[%clk 0:01:57.7]} 25. Qxc4+
{[%clk 0:01:56.4]} 25... Kg6 {[%clk 0:01:57.7]} 26. Rd6 {[%clk 0:01:47.1]} 26...
Qe8 {[%clk 0:01:44.6]} 27. Qc2+ {[%clk 0:01:25.8]} 27... Kf7 {[%clk 0:01:41.2]}
28. Qc4+ {[%clk 0:01:19.5]} 28... Kg6 {[%clk 0:01:40]} 29. Qc2+ {[%clk
0:01:10.9]} 29... Kf7 {[%clk 0:01:38.7]} 30. Qc4+ {[%clk 0:01:11.1]} 30... Kg6
{[%clk 0:01:37.9]} 1/2-1/2